bitfinex/quotes_BTCUSD_20240815
["timestamp","ask_amount","ask_price","bid_price","bid_amount"]
[1723736352247,1.85264507,59584.0,59583.0,0.0009097]
[1723736352381,1.74303698,59584.0,59583.0,0.0009097]
[1723736352599,1.81806928,59584.0,59583.0,0.0009097]
[1723736352968,2.12381128,59584.0,59583.0,0.0009097]
[1723736353168,2.03076496,59584.0,59583.0,0.0009097]
[1723736353429,2.13081128,59584.0,59583.0,0.0009097]
[1723736353975,2.14181128,59584.0,59583.0,0.0009097]
[1723736354245,2.04176496,59584.0,59583.0,0.0009097]
[1723736354592,2.37742496,59584.0,59583.0,0.0009097]
[1723736355014,2.37733482,59584.0,59583.0,0.0009097]
[1723736355191,2.4773817,59584.0,59583.0,0.0009097]
[1723736355408,2.4703817,59584.0,59583.0,0.0009097]
[1723736356245,2.4833817,59584.0,59583.0,0.0009097]
[1723736356687,2.4723817,59584.0,59583.0,0.0009097]
[1723736356851,2.70783739,59584.0,59583.0,0.0009097]
[1723736357595,2.72183739,59584.0,59583.0,0.0009097]
[1723736358921,2.71629068,59584.0,59583.0,0.0009097]
[1723736359172,2.72183743,59584.0,59583.0,0.0009097]
[1723736359380,2.74684915,59584.0,59583.0,0.0009097]
[1723736360295,3.34510915,59584.0,59583.0,0.0009097]
[1723736360494,1.315027,59573.0,59565.0,0.009086]
[1723736360701,1.94712263,59573.0,59565.0,0.009086]
[1723736360904,2.72930864,59573.0,59565.0,0.009086]
[1723736361112,2.75230864,59573.0,59565.0,0.009086]
[1723736361555,1.510929,59566.0,59565.0,0.009086]
[1723736361774,1.94792059,59566.0,59565.0,0.009086]
[1723736362006,2.41153698,59566.0,59565.0,0.009086]
[1723736362214,2.90502461,59566.0,59565.0,0.009086]
[1723736362388,2.41153698,59566.0,59565.0,0.009086]
[1723736362593,2.58309152,59566.0,59565.0,0.009086]
[1723736362795,2.91885352,59566.0,59565.0,0.009086]
[1723736363013,2.93185352,59566.0,59565.0,0.009086]
[1723736363215,2.94029266,59566.0,59565.0,0.009086]
[1723736363369,2.92729266,59566.0,59565.0,0.009086]
[1723736363777,2.92298026,59566.0,59565.0,0.009086]
[1723736364338,2.93698026,59566.0,59565.0,0.009086]
[1723736364666,2.95098026,59566.0,59565.0,0.009086]
[1723736365309,2.95098251,59566.0,59565.0,0.009086]
[1723736366208,3.07566361,59566.0,59565.0,0.009086]
[1723736366703,1.922818,59565.0,59564.0,1.25e-06]
[1723736366901,2.73847284,59565.0,59564.0,1.25e-06]
[1723736367107,2.86315394,59565.0,59564.0,1.25e-06]
[1723736367328,2.73847284,59565.0,59564.0,1.25e-06]
[1723736367737,2.75247284,59565.0,59564.0,1.25e-06]
[1723736368141,2.76447284,59565.0,59564.0,1.25e-06]
[1723736368342,2.75912744,59565.0,59564.0,1.25e-06]
[1723736368640,2.76448241,59565.0,59564.0,1.25e-06]
[1723736369299,2.75911798,59565.0,59564.0,1.25e-06]
[1723736369494,2.75911805,59565.0,59564.0,1.25e-06]
[1723736369727,1.04576355,59565.0,59564.0,1.25e-06]
[1723736369878,0.87096607,59565.0,59564.0,1.25e-06]
[1723736370084,0.53519907,59565.0,59564.0,1.25e-06]
[1723736370609,0.026,59565.0,59564.0,0.31118725]
[1723736370936,0.026,59565.0,59564.0,0.14330125]
[1723736371125,0.2300582,59565.0,59564.0,0.14330125]
[1723736371337,0.014,59565.0,59564.0,0.14330125]
[1723736371530,0.014,59565.0,59564.0,0.31118725]
[1723736371738,0.019,59565.0,59564.0,0.14330125]
[1723736371873,0.186883,59565.0,59564.0,0.14330125]
[1723736372322,0.019,59565.0,59564.0,0.14330125]
[1723736372523,0.0572636,59565.0,59564.0,0.14330125]
[1723736372764,0.2251466,59565.0,59564.0,0.14330125]
[1723736372941,0.2351466,59565.0,59564.0,0.14330125]
[1723736373140,0.0672636,59565.0,59564.0,0.14330125]
[1723736373469,0.015,59565.0,59564.0,0.31118725]
[1723736373617,0.015,59565.0,59564.0,0.14330125]
[1723736373819,0.182883,59565.0,59564.0,0.14330125]
[1723736374020,0.2347465,59565.0,59564.0,0.14330125]
[1723736374474,0.5705135,59565.0,59564.0,0.14330125]
[1723736374846,0.9062805,59565.0,59564.0,0.14330125]
[1723736375209,0.5705135,59565.0,59564.0,0.14330125]
[1723736375634,0.9062805,59565.0,59564.0,0.14330125]
[1723736376956,0.02054731,59565.0,59564.0,0.14330125]
[1723736377159,0.015,59565.0,59564.0,0.14330125]
[1723736377556,0.02054725,59565.0,59564.0,0.14330125]
[1723736377961,0.18843026,59565.0,59564.0,0.14330125]
[1723736378924,0.52419726,59565.0,59564.0,0.14330125]
[1723736379140,0.61101405,59565.0,59564.0,0.14330125]
[1723736379705,0.94678105,59565.0,59564.0,0.14330125]
[1723736379909,0.61101405,59565.0,59564.0,0.14330125]
[1723736381462,0.61101405,59565.0,59564.0,0.06540125]
[1723736381656,0.94678105,59565.0,59564.0,0.06540125]
[1723736381900,0.85996426,59565.0,59564.0,0.06540125]
[1723736382315,0.52419732,59565.0,59564.0,0.06540125]
[1723736385646,0.85996432,59565.0,59564.0,0.06540125]
[1723736385848,0.52502432,59565.0,59564.0,0.06540125]
[1723736386474,0.86079132,59565.0,59564.0,0.06540125]
[1723736387086,0.98984555,59565.0,59564.0,0.06540125]
[1723736387293,0.98984555,59565.0,59564.0,1.25e-06]
[1723736387756,0.98984556,59565.0,59564.0,1.25e-06]
[1723736387963,0.98429823,59565.0,59564.0,1.25e-06]
[1723736388171,0.98984556,59565.0,59564.0,1.25e-06]
[1723736389101,0.86079133,59565.0,59564.0,1.25e-06]
[1723736390365,0.855244,59565.0,59564.0,1.25e-06]
[1723736390562,0.86079131,59565.0,59564.0,1.25e-06]
[1723736391184,0.52502431,59565.0,59564.0,1.25e-06]
[1723736392072,0.86079131,59565.0,59564.0,1.25e-06]
[1723736392267,0.64467934,59565.0,59564.0,1.25e-06]
[1723736392518,0.52502431,59565.0,59564.0,1.25e-06]
[1723736394837,0.52502481,59565.0,59564.0,1.25e-06]
[1723736395239,0.57510905,59565.0,59564.0,1.25e-06]
[1723736396669,0.91087605,59565.0,59564.0,1.25e-06]
[1723736396928,0.57510905,59565.0,59564.0,1.25e-06]
[1723736397278,1.01949104,59565.0,59564.0,1.25e-06]
[1723736398495,0.9694068,59565.0,59564.0,1.25e-06]
[1723736398915,0.6336398,59565.0,59564.0,1.25e-06]
[1723736399120,0.63363982,59565.0,59564.0,1.25e-06]
[1723736399634,0.64222381,59565.0,59564.0,1.25e-06]
[1723736399834,0.97799081,59565.0,59564.0,1.25e-06]
[1723736400214,0.53360882,59565.0,59564.0,1.25e-06]
[1723736400619,0.58368674,59565.0,59564.0,1.25e-06]
[1723736400827,0.91945316,59565.0,59564.0,1.25e-06]
[1723736401081,0.86937582,59565.0,59564.0,1.25e-06]
[1723736401251,1.02610218,59565.0,59564.0,1.25e-06]
[1723736401615,1.49559503,59565.0,59564.0,1.25e-06]
[1723736401815,1.15982803,59565.0,59564.0,1.25e-06]
[1723736402036,2.15711808,59565.0,59564.0,1.25e-06]
[1723736402225,2.49288508,59565.0,59564.0,1.25e-06]
[1723736402422,2.49288508,59565.0,59558.0,0.00092447]
[1723736402423,1.175303,59559.0,59558.0,0.00092447]
[1723736402813,2.41391564,59559.0,59558.0,0.00092447]
[1723736403020,2.75740443,59559.0,59558.0,0.00092447]
[1723736403225,2.56405318,59559.0,59558.0,0.00092447]
[1723736403471,3.09112522,59559.0,59558.0,0.00092447]
[1723736403715,3.2359927,59559.0,59558.0,0.00092447]
[1723736403916,3.40795329,59559.0,59558.0,0.00092447]
[1723736404118,3.2389927,59559.0,59558.0,0.00092447]
[1723736404981,3.2459927,59559.0,59558.0,0.00092447]
[1723736405185,3.2599927,59559.0,59558.0,0.00092447]
[1723736405584,3.26875588,59559.0,59558.0,0.00092447]
[1723736406216,3.26320805,59559.0,59558.0,0.00092447]
[1723736406411,3.26875767,59559.0,59558.0,0.00092447]
[1723736406597,3.25346871,59559.0,59558.0,0.00092447]
[1723736407754,2.91766771,59559.0,59558.0,0.00092447]
[1723736410776,2.91211809,59559.0,59558.0,0.00092447]
[1723736411009,2.91766774,59559.0,59558.0,0.00092447]
[1723736411191,2.7307904,59559.0,59558.0,0.00092447]
[1723736411757,2.49403586,59559.0,59558.0,0.00092447]
[1723736411959,2.34399829,59559.0,59558.0,0.00092447]
[1723736412559,1.511154,59557.0,59556.0,0.009086]
[1723736412739,2.30842075,59557.0,59556.0,0.009086]
[1723736413407,2.20427433,59557.0,59556.0,0.009086]
[1723736413611,2.30850702,59557.0,59556.0,0.009086]
[1723736414622,2.31650702,59557.0,59556.0,0.009086]
[1723736415369,2.32850702,59557.0,59556.0,0.009086]
[1723736415566,2.32861,59557.0,59556.0,0.009086]
[1723736417856,2.02332961,59557.0,59556.0,0.009086]
[1723736418056,2.0442536,59557.0,59556.0,0.009086]
[1723736418257,1.7084416,59557.0,59556.0,0.009086]
[1723736418397,1.68340993,59557.0,59556.0,0.009086]
[1723736418597,1.68340993,59557.0,59556.0,0.086186]
[1723736418799,1.39898745,59557.0,59556.0,0.086186]
[1723736419040,1.39898745,59557.0,59556.0,0.150786]
[1723736419041,1.04017545,59557.0,59556.0,0.150786]
[1723736419399,0.96507961,59557.0,59556.0,0.150786]
[1723736419594,0.96507901,59557.0,59556.0,0.150786]
[1723736420048,1.01516438,59557.0,59556.0,0.150786]
[1723736420248,0.02554901,59557.0,59556.0,0.150786]
[1723736420419,0.02554901,59557.0,59556.0,1.16188554]
[1723736420621,0.187906,59557.0,59556.0,0.16229869]
[1723736420831,0.52926593,59557.0,59556.0,0.16229869]
[1723736420998,0.54805653,59557.0,59556.0,0.16229869]
[1723736421175,0.54805653,59557.0,59556.0,0.150786]
[1723736421563,0.86386853,59557.0,59556.0,0.16229869]
[1723736421739,0.87086853,59557.0,59556.0,0.16229869]
[1723736421873,1.21468053,59557.0,59556.0,0.150786]
[1723736422075,1.21468053,59557.0,59556.0,0.009086]
[1723736422076,0.87086853,59557.0,59556.0,0.009086]
[1723736422276,1.2727659,59557.0,59556.0,0.009086]
[1723736422482,1.23368053,59557.0,59556.0,0.009086]
[1723736422895,1.62306477,59557.0,59556.0,0.009086]
[1723736423103,2.12243131,59557.0,59556.0,0.009086]
[1723736423325,2.11058752,59557.0,59556.0,0.009086]
[1723736423933,2.11058914,59557.0,59556.0,0.009086]
[1723736424129,2.11930584,59557.0,59556.0,0.009086]
[1723736424383,2.21930584,59557.0,59556.0,0.009086]
[1723736424584,1.88349384,59557.0,59556.0,0.009086]
[1723736424788,1.69698507,59557.0,59556.0,0.009086]
[1723736425271,1.38775955,59557.0,59556.0,0.009086]
[1723736425651,1.40175955,59557.0,59556.0,0.009086]
[1723736425855,1.69071945,59557.0,59556.0,0.009086]
[1723736426072,1.7760752,59557.0,59556.0,0.009086]
[1723736426484,1.87627979,59557.0,59556.0,0.009086]
[1723736426646,1.87627954,59557.0,59556.0,0.009086]
[1723736427174,2.00570298,59557.0,59556.0,0.009086]
[1723736427579,1.87628402,59557.0,59556.0,0.009086]
[1723736427771,1.7760752,59557.0,59556.0,0.009086]
[1723736427973,1.98066152,59557.0,59556.0,0.009086]
[1723736428423,1.9806611,59557.0,59556.0,0.009086]
[1723736429200,1.8804555,59557.0,59556.0,0.009086]
[1723736429399,1.98067328,59557.0,59556.0,0.009086]
[1723736429602,2.00544844,59557.0,59556.0,0.009086]
[1723736431075,1.8802015,59557.0,59556.0,0.009086]
[1723736431982,2.3626135,59557.0,59556.0,0.009086]
[1723736432148,1.9614015,59557.0,59556.0,0.009086]
[1723736432349,2.2972135,59557.0,59556.0,0.009086]
[1723736432602,1.87465237,59557.0,59556.0,0.009086]
[1723736432796,1.88020179,59557.0,59556.0,0.009086]
[1723736432997,2.21601379,59557.0,59556.0,0.009086]
[1723736433205,2.21335497,59557.0,59556.0,0.009086]
[1723736436414,2.36367277,59557.0,59556.0,0.009086]
[1723736437270,2.79416304,59557.0,59556.0,0.009086]
[1723736437472,1.51128,59552.0,59551.0,0.0002]
[1723736437622,2.17637245,59552.0,59551.0,0.0002]
[1723736438681,2.18637245,59552.0,59551.0,0.0002]
[1723736439286,2.35093502,59552.0,59551.0,0.0002]
[1723736440463,2.6870739,59552.0,59551.0,0.0002]
[1723736440696,2.79411269,59552.0,59551.0,0.0002]
[1723736440851,2.45242428,59552.0,59551.0,0.0002]
[1723736441054,2.45797399,59552.0,59551.0,0.0002]
[1723736441257,2.64365089,59552.0,59551.0,0.0002]
[1723736441955,2.64178607,59552.0,59551.0,0.0002]
[1723736442514,2.36319274,59552.0,59551.0,0.0795]
[1723736442713,2.02735274,59552.0,59551.0,0.0795]
[1723736443139,2.02735274,59552.0,59551.0,0.1419]
[1723736443339,2.00435274,59552.0,59551.0,0.1419]
[1723736444497,0.39250262,59552.0,59551.0,0.1419]
[1723736444731,0.56042262,59552.0,59551.0,0.1419]
[1723736444945,0.56042262,59552.0,59551.0,0.07020681]
[1723736444946,1.3032278,59552.0,59551.0,0.07020681]
[1723736445147,1.3032278,59552.0,59551.0,0.0626]
[1723736445364,2.12471564,59552.0,59551.0,0.0626]
[1723736445558,1.79179415,59552.0,59551.0,0.0626]
[1723736445754,1.97944572,59552.0,59551.0,0.0626]
[1723736447322,1.90832014,59552.0,59551.0,0.0626]
[1723736447775,1.90832014,59552.0,59551.0,0.0635097]
[1723736448125,1.90832013,59552.0,59551.0,0.0635097]
[1723736449112,1.90832013,59552.0,59551.0,0.0011097]
[1723736450080,1.90832013,59552.0,59551.0,0.0839097]
[1723736450851,1.95055154,59552.0,59551.0,0.0839097]
[1723736451052,1.95055154,59552.0,59551.0,0.0011097]
[1723736451732,2.28639154,59552.0,59551.0,0.0011097]
[1723736451934,1.97355154,59552.0,59551.0,0.0011097]
[1723736452933,1.96800214,59552.0,59551.0,0.0011097]
[1723736453126,1.97355166,59552.0,59551.0,0.0011097]
[1723736453528,1.93004752,59552.0,59551.0,0.0011097]
[1723736453705,1.90704752,59552.0,59551.0,0.0011097]
[1723736455340,1.5691968,59552.0,59551.0,0.0011097]
[1723736455542,1.90735076,59552.0,59551.0,0.0011097]
[1723736455757,1.90735074,59552.0,59551.0,0.0011097]
[1723736456154,1.23567074,59552.0,59551.0,0.1423097]
[1723736456313,0.89766315,59552.0,59551.0,0.1423097]
[1723736456516,1.23350315,59552.0,59551.0,0.1423097]
[1723736456919,1.65634714,59552.0,59551.0,0.1423097]
[1723736457115,1.65634695,59552.0,59551.0,0.1423097]
[1723736457677,1.57151055,59552.0,59551.0,0.0011097]
[1723736457950,1.56934301,59552.0,59551.0,0.0011097]
[1723736458098,1.9073506,59552.0,59551.0,0.0011097]
[1723736458304,1.9303506,59552.0,59551.0,0.0011097]
[1723736458532,2.10190514,59552.0,59551.0,0.0011097]
[1723736458730,2.44334967,59552.0,59551.0,0.0011097]
[1723736458883,2.87918967,59552.0,59551.0,0.0011097]
[1723736459087,2.87918995,59552.0,59551.0,0.0011097]
[1723736460570,2.17724087,59552.0,59551.0,0.0011097]
[1723736460767,2.00735079,59552.0,59551.0,0.0671097]
[1723736461686,2.01594281,59552.0,59551.0,0.0671097]
[1723736462807,2.0121698,59552.0,59551.0,0.0671097]
[1723736462929,2.01230712,59552.0,59551.0,0.0671097]
[1723736463344,2.18386166,59552.0,59551.0,0.0671097]
[1723736464182,2.18386166,59552.0,59551.0,0.0011097]
[1723736465262,2.5226688,59552.0,59551.0,0.0011097]
[1723736465666,2.8585088,59552.0,59551.0,0.0011097]
[1723736466218,2.5226688,59552.0,59551.0,0.0011097]
[1723736466662,2.4574688,59552.0,59551.0,0.0011097]
[1723736466859,2.7933088,59552.0,59551.0,0.0011097]
[1723736467236,2.28722434,59552.0,59551.0,0.0011097]
[1723736467606,2.62306443,59552.0,59551.0,0.0011097]
[1723736467884,2.28722443,59552.0,59551.0,0.0011097]
[1723736468092,2.62306443,59552.0,59551.0,0.0011097]
[1723736468794,2.28722443,59552.0,59551.0,0.0011097]
[1723736469197,2.20652443,59552.0,59551.0,0.0011097]
[1723736470273,2.20729944,59552.0,59551.0,0.0011097]
[1723736470452,2.02715288,59552.0,59551.0,0.0011097]
[1723736470662,1.66831288,59552.0,59551.0,0.0647097]
[1723736471379,1.66276324,59552.0,59551.0,0.1466097]
[1723736471561,1.66831257,59552.0,59551.0,0.1466097]
[1723736471787,0.99108324,59552.0,59551.0,0.1466097]
[1723736471968,0.56023525,59552.0,59551.0,0.1466097]
[1723736472591,1.46888777,59552.0,59551.0,0.1466097]
[1723736472794,2.16148428,59552.0,59551.0,0.0647097]
[1723736473072,2.16148428,59552.0,59551.0,0.0011097]
[1723736473073,2.33157036,59552.0,59551.0,0.0011097]
[1723736473272,2.16001582,59552.0,59551.0,0.0011097]
[1723736474233,1.98992974,59552.0,59551.0,0.0011097]
[1723736475339,1.98992974,59552.0,59551.0,0.0819097]
[1723736475340,0.72871247,59552.0,59551.0,0.0819097]
[1723736475534,0.39231525,59552.0,59551.0,0.1457097]
[1723736475743,0.56023525,59552.0,59551.0,0.1457097]
[1723736475943,0.71144782,59552.0,59551.0,0.1457097]
[1723736476168,0.56023525,59552.0,59551.0,0.1457097]
[1723736476404,0.89607525,59552.0,59551.0,0.1457097]
[1723736476602,0.89607525,59552.0,59551.0,0.15331651]
[1723736477175,1.38313135,59552.0,59551.0,0.15331651]
[1723736477377,1.04729135,59552.0,59551.0,0.15331651]
[1723736477905,0.89607525,59552.0,59551.0,0.15331651]
[1723736478082,1.04729135,59552.0,59551.0,0.1457097]
[1723736478667,0.56023525,59552.0,59551.0,0.1457097]
[1723736479041,0.56023492,59552.0,59551.0,0.1457097]
[1723736479518,0.39231492,59552.0,59551.0,0.1457097]
[1723736479729,0.2879342,59552.0,59551.0,0.82103324]
[1723736479943,0.105119,59552.0,59551.0,1.15687924]
[1723736480400,0.0295489,59552.0,59551.0,1.15687924]
[1723736480801,0.0155489,59552.0,59551.0,1.15687924]
[1723736481204,0.0145489,59552.0,59551.0,1.15687924]
[1723736481405,0.0145489,59552.0,59551.0,1.49272524]
[1723736481406,0.0195489,59552.0,59551.0,1.49272524]
[1723736481641,0.0105489,59552.0,59551.0,1.49272524]
[1723736481850,0.0055489,59555.0,59554.0,0.839572]
[1723736482058,0.0055489,59555.0,59554.0,1.49155554]
[1723736482699,0.0055489,59555.0,59554.0,1.64082206]
[1723736482879,0.000827,59556.0,59555.0,1.319984]
[1723736483134,0.000827,59556.0,59555.0,1.49153854]
[1723736483531,0.000827,59556.0,59555.0,1.82736254]
[1723736483939,0.000827,59556.0,59555.0,1.99891708]
[1723736484351,0.000827,59556.0,59555.0,1.49153854]
[1723736486268,0.001827,59556.0,59555.0,1.49253854]
[1723736487269,0.001827,59556.0,59555.0,1.49353854]
[1723736492572,0.001827,59556.0,59555.0,1.15771454]
[1723736493413,0.001827,59556.0,59555.0,0.40526654]
[1723736493617,0.001827,59556.0,59555.0,0.82129054]
[1723736493817,0.001827,59556.0,59555.0,1.49293854]
[1723736494164,0.001827,59556.0,59555.0,1.64234336]
[1723736494371,0.001827,59556.0,59555.0,1.64134336]
[1723736494568,0.001827,59556.0,59555.0,1.64234336]
[1723736495205,0.001827,59556.0,59555.0,1.64134336]
[1723736495404,0.00462491,59556.0,59555.0,1.49093854]
[1723736495859,0.00462491,59556.0,59555.0,1.49193854]
[1723736496051,0.00062491,59556.0,59555.0,1.49093854]
[1723736496468,0.00162491,59556.0,59555.0,1.49193854]
[1723736496680,0.00162491,59556.0,59555.0,1.64211679]
[1723736497294,0.00062491,59556.0,59555.0,1.30529279]
[1723736497495,0.00062491,59556.0,59555.0,1.30629279]
[1723736497879,0.00062491,59556.0,59555.0,1.30529279]
[1723736498083,0.00062491,59556.0,59555.0,1.64111679]
[1723736498289,0.00062491,59556.0,59555.0,1.64211679]
[1723736498661,0.00162491,59556.0,59555.0,1.64311679]
[1723736499330,0.00162491,59556.0,59555.0,0.82129054]
[1723736499462,0.00162491,59556.0,59555.0,0.48546654]
[1723736499864,0.00162491,59556.0,59555.0,0.82129054]
[1723736500301,0.00162491,59556.0,59555.0,0.17355454]
[1723736500485,0.00162491,59556.0,59555.0,0.34146654]
[1723736501081,0.00162491,59556.0,59555.0,0.67729054]
[1723736503178,0.00162491,59556.0,59555.0,1.01311454]
[1723736503513,0.00162491,59556.0,59555.0,1.23978116]
[1723736504750,0.00162491,59556.0,59555.0,1.30218116]
[1723736504950,0.00162491,59556.0,59555.0,1.63800516]
[1723736507982,0.00162491,59556.0,59555.0,1.63891376]
[1723736509695,0.00162491,59556.0,59555.0,1.64650612]
[1723736510381,0.00162491,59556.0,59555.0,1.98233012]
[1723736523134,0.00162491,59556.0,59555.0,2.42015412]
[1723736524055,0.00062491,59556.0,59555.0,2.41915412]
[1723736524263,0.00162491,59556.0,59555.0,2.42015412]
[1723736524466,0.00162491,59556.0,59555.0,2.41915412]
[1723736524664,0.00162491,59556.0,59555.0,2.77615412]
[1723736525226,0.00162491,59556.0,59555.0,2.77215412]
[1723736525423,0.00262491,59556.0,59555.0,2.77715412]
[1723736525879,0.00262491,59556.0,59555.0,3.11297812]
[1723736526052,0.000827,59557.0,59556.0,1.992299]
[1723736526253,0.000827,59557.0,59556.0,2.74942423]
[1723736526480,0.000827,59558.0,59557.0,1.320642]
[1723736526635,0.000827,59558.0,59557.0,2.62263254]
[1723736526858,0.000827,59558.0,59557.0,3.2003484]
[1723736527061,0.000827,59558.0,59557.0,3.34951502]
[1723736527278,0.000827,59558.0,59557.0,3.2993798]
[1723736527522,0.000827,59558.0,59557.0,3.34953522]
[1723736527767,0.000827,59565.0,59564.0,1.512978]
[1723736527970,0.000827,59565.0,59564.0,2.09043254]
[1723736528142,0.000827,59565.0,59564.0,2.25055859]
[1723736528349,0.000827,59565.0,59564.0,2.92210459]
[1723736528523,0.000827,59565.0,59564.0,3.38510459]
[1723736528730,0.000827,59565.0,59564.0,3.44525989]
[1723736528942,0.000827,59565.0,59564.0,3.39510459]
[1723736529148,0.001827,59565.0,59564.0,3.40896597]
[1723736529570,0.001827,59565.0,59564.0,3.40996597]
[1723736529571,0.002827,59565.0,59564.0,3.40996597]
[1723736529790,0.000827,59565.0,59564.0,3.39396597]
[1723736530002,0.000827,59565.0,59564.0,3.40196597]
[1723736530003,0.001827,59565.0,59564.0,3.40196597]
[1723736530203,0.002827,59565.0,59564.0,3.51307082]
[1723736530421,0.002827,59565.0,59564.0,3.46296597]
[1723736532154,0.002827,59565.0,59564.0,2.76841997]
[1723736532768,0.16307727,59584.0,59583.0,1.174831]
[1723736532769,0.08577727,59584.0,59583.0,1.174831]
[1723736532940,0.0773,59586.0,59585.0,0.167827]
[1723736533140,0.0773,59586.0,59585.0,1.35382312]
[1723736534375,0.0793,59586.0,59585.0,1.35382312]
[1723736535267,0.0793,59586.0,59585.0,1.40639381]
[1723736535473,0.0793,59586.0,59585.0,1.35382312]
[1723736535677,0.0793,59586.0,59585.0,1.01816912]
[1723736535906,0.0863,59586.0,59585.0,1.01916912]
[1723736536323,0.1461,59586.0,59585.0,0.00847958]
[1723736536522,0.14464528,59586.0,59585.0,0.17530658]
[1723736536858,0.15064528,59586.0,59585.0,0.00747958]
[1723736537071,0.1451,59586.0,59585.0,0.51096058]
[1723736537254,0.1451,59586.0,59585.0,0.62171076]
[1723736537453,0.15064523,59586.0,59585.0,0.62919034]
[1723736538170,0.15064523,59586.0,59585.0,0.51096058]
[1723736538832,0.15064523,59586.0,59585.0,1.01816912]
[1723736539061,0.0833,59586.0,59585.0,1.35382312]
[1723736539191,0.006,59586.0,59585.0,1.35382312]
[1723736539393,0.006,59586.0,59585.0,1.51546543]
[1723736539599,0.006,59586.0,59585.0,1.35382312]
[1723736543453,0.006826,59586.0,59585.0,1.35382312]
[1723736543665,0.006826,59586.0,59585.0,1.68947712]
[1723736543877,0.006826,59586.0,59585.0,1.83237712]
[1723736544079,0.006826,59586.0,59585.0,1.83437712]
[1723736544284,0.006826,59586.0,59585.0,2.56593166]
[1723736544513,0.000826,59588.0,59587.0,1.512393]
[1723736544789,0.000826,59588.0,59587.0,2.89309054]
[1723736545041,0.000826,59598.0,59587.0,2.89309054]
[1723736545042,0.000826,59598.0,59597.0,1.510141]
[1723736545257,0.000826,59598.0,59597.0,2.08599554]
[1723736545459,0.000826,59598.0,59597.0,2.6936146]
[1723736546613,0.000826,59598.0,59597.0,2.5519146]
[1723736547142,0.000826,59598.0,59597.0,1.9909146]
[1723736547636,0.062126,59598.0,59597.0,1.3927276]
[1723736547899,0.062126,59598.0,59597.0,1.3977276]
[1723736548607,0.062126,59598.0,59597.0,1.6603276]
[1723736548608,0.000826,59598.0,59597.0,1.6603276]
[1723736550106,0.000826,59598.0,59597.0,2.3951016]
[1723736550333,0.000826,59606.0,59597.0,2.3951016]
[1723736550334,0.000826,59606.0,59605.0,0.574071]
[1723736550546,0.000826,59606.0,59605.0,1.80965864]
[1723736550755,0.000826,59606.0,59605.0,2.15260809]
[1723736551515,0.000826,59606.0,59605.0,2.15360809]
[1723736551922,0.000826,59606.0,59605.0,2.15260809]
[1723736552360,0.000826,59606.0,59605.0,2.16160809]
[1723736552765,0.000826,59606.0,59605.0,2.17360809]
[1723736552979,0.000826,59606.0,59605.0,2.17560809]
[1723736553188,0.000826,59606.0,59605.0,2.50915009]
[1723736553399,0.000826,59606.0,59605.0,2.49715009]
[1723736553599,0.000826,59606.0,59605.0,2.59715009]
[1723736553859,0.000826,59606.0,59605.0,2.61015009]
[1723736554000,0.000826,59606.0,59605.0,3.34015009]
[1723736555113,0.000826,59606.0,59605.0,3.34215009]
[1723736556144,0.000826,59606.0,59605.0,3.35113662]
[1723736556565,0.000826,59606.0,59605.0,2.62113662]
[1723736556768,0.000826,59606.0,59605.0,3.27113662]
[1723736560672,0.000826,59606.0,59605.0,3.03113662]
[1723736561449,0.000826,59606.0,59605.0,2.21435262]
[1723736561667,0.000826,59606.0,59605.0,2.14435262]
[1723736564184,0.000826,59606.0,59605.0,2.47989462]
[1723736565182,0.000826,59606.0,59605.0,2.28505262]
[1723736565850,0.000826,59606.0,59605.0,2.62059462]
[1723736567005,0.000826,59606.0,59605.0,2.62259462]
[1723736567178,0.000826,59606.0,59605.0,2.62059462]
[1723736567535,0.000826,59606.0,59605.0,2.54089462]
[1723736568866,0.000826,59616.0,59607.0,0.1415]
[1723736569072,0.0753,59632.0,59623.0,0.503161]
[1723736569271,0.00826,59646.0,59638.0,0.335356]
[1723736569272,0.1411,59639.0,59638.0,0.335356]
[1723736569425,0.0791,59639.0,59638.0,1.60790054]
[1723736569625,0.0791,59639.0,59638.0,1.87790054]
[1723736569830,0.0791,59639.0,59638.0,1.98083931]
[1723736570054,0.0791,59639.0,59638.0,1.90808331]
[1723736570267,0.0791,59639.0,59638.0,1.63808331]
[1723736571231,0.0791,59639.0,59638.0,1.31572731]
[1723736571480,0.0791,59639.0,59638.0,1.65108331]
[1723736572120,0.0791,59639.0,59638.0,1.66008331]
[1723736572773,0.062,59644.0,59638.0,1.66008331]
[1723736572774,0.0823,59643.0,59639.0,1.509079]
[1723736572975,0.0823,59643.0,59639.0,1.73804064]
[1723736574124,0.08577727,59642.0,59639.0,1.35728254]
[1723736574344,0.1809,59640.0,59639.0,1.35728254]
[1723736574816,0.1809,59640.0,59639.0,1.34528254]
[1723736575022,0.1809,59640.0,59639.0,1.00993154]
[1723736575244,0.1658,59640.0,59639.0,0.013]
[1723736575491,0.1658,59640.0,59639.0,0.180675]
[1723736575720,0.1658,59640.0,59639.0,0.013]
[1723736575955,0.2424,59640.0,59639.0,0.189675]
[1723736576448,0.2424,59640.0,59639.0,0.53254932]
[1723736576666,0.2424,59640.0,59639.0,0.51954932]
[1723736577090,0.2424,59640.0,59639.0,0.51054932]
[1723736577292,0.2424,59640.0,59639.0,1.10204639]
[1723736577543,0.1,59640.0,59639.0,1.68815686]
[1723736579232,0.1,59640.0,59639.0,2.06815686]
[1723736579678,0.1,59640.0,59639.0,2.07015686]
[1723736580024,0.1,59640.0,59639.0,1.73280586]
[1723736580224,0.1,59640.0,59639.0,1.9043604]
[1723736580498,0.1,59640.0,59639.0,1.35880586]
[1723736580499,0.178726,59640.0,59639.0,1.35880586]
[1723736580627,0.240526,59640.0,59639.0,0.01352332]
[1723736581025,0.240526,59640.0,59639.0,0.18370609]
[1723736581450,0.240526,59640.0,59639.0,0.51905709]
[1723736581649,0.240526,59640.0,59639.0,0.85440809]
[1723736581852,0.240526,59640.0,59639.0,1.02596263]
[1723736583023,0.240526,59640.0,59639.0,0.85440809]
[1723736583436,0.240526,59640.0,59639.0,1.36131363]
[1723736583437,0.100826,59640.0,59639.0,1.36131363]
[1723736584250,0.100826,59640.0,59639.0,1.69666463]
[1723736584622,0.100826,59640.0,59639.0,1.95926463]
[1723736584779,0.100826,59640.0,59639.0,2.13081917]
[1723736584982,0.000826,59640.0,59639.0,2.13081917]
[1723736585384,0.000826,59640.0,59639.0,2.12981917]
[1723736586299,0.000826,59640.0,59639.0,2.12481917]
[1723736586669,0.000826,59640.0,59639.0,2.13781917]
[1723736587072,0.000826,59640.0,59639.0,2.14681917]
[1723736587343,0.000826,59640.0,59639.0,2.28611917]
[1723736587535,0.00826,59646.0,59645.0,0.430258]
[1723736587739,0.00826,59658.0,59648.0,0.0792]